bitfinex/quotes_BTCUSD_20250529
["timestamp","ask_amount","ask_price","bid_price","bid_amount"]
[1748493513972,0.20472689,107460.0,107450.0,0.37001291]
[1748493514199,0.23522689,107460.0,107450.0,0.00204916]
[1748493514695,0.32628084,107460.0,107450.0,0.00204916]
[1748493517915,0.20472689,107460.0,107450.0,0.00204916]
[1748493518436,0.55859267,107460.0,107450.0,0.48519403]
[1748493518671,0.54928715,107460.0,107450.0,0.57392154]
[1748493518897,0.20472715,107460.0,107450.0,0.38778846]
[1748493519124,0.01861139,107460.0,107450.0,0.59253423]
[1748493519349,0.20472715,107460.0,107450.0,0.58322793]
[1748493519572,0.20472715,107460.0,107450.0,0.59253423]
[1748493519798,0.01861096,107460.0,107450.0,0.59253423]
[1748493520032,0.01861096,107460.0,107450.0,0.21762311]
[1748493520033,0.23542715,107460.0,107450.0,0.21762311]
[1748493520251,0.23542715,107460.0,107450.0,0.12656916]
[1748493520473,0.23542715,107460.0,107450.0,0.13587581]
[1748493520713,0.21681576,107460.0,107450.0,0.12656916]
[1748493521607,0.21681576,107460.0,107450.0,0.13587581]
[1748493521835,0.21681576,107460.0,107450.0,0.12656916]
[1748493522057,0.18611576,107460.0,107450.0,0.12656916]
[1748493522724,0.18611576,107460.0,107450.0,0.41194795]
[1748493522945,0.18611576,107460.0,107450.0,0.48712985]
[1748493523602,0.19542137,107460.0,107450.0,0.68256941]
[1748493524059,0.19542137,107460.0,107450.0,0.6918758]
[1748493524276,0.19542137,107460.0,107450.0,0.68256941]
[1748493524741,0.21052137,107460.0,107450.0,0.69187571]
[1748493524954,0.04301674,107460.0,107450.0,0.70118193]
[1748493525187,0.02791674,107460.0,107450.0,0.70118193]
[1748493525369,0.04301674,107460.0,107450.0,0.6918758]
[1748493525621,0.02791674,107460.0,107450.0,0.6918758]
[1748493526105,0.01861096,107460.0,107450.0,0.7011821]
[1748493526328,0.02791674,107460.0,107450.0,0.71048832]
[1748493526785,0.02791674,107460.0,107450.0,0.71979445]
[1748493527022,0.02791674,107460.0,107450.0,0.7011821]
[1748493527240,0.02791666,107460.0,107450.0,0.71048823]
[1748493527702,0.03722244,107460.0,107450.0,0.41580331]
[1748493528630,0.03722244,107460.0,107450.0,0.42510953]
[1748493529070,0.01861096,107460.0,107450.0,0.42510953]
[1748493529294,0.03722244,107460.0,107450.0,0.43441566]
[1748493529513,0.03722244,107460.0,107450.0,0.71048832]
[1748493529962,0.01861044,107460.0,107450.0,0.71048832]
[1748493530182,0.00930431,107470.0,107460.0,0.21403208]
[1748493530411,0.0279132,107470.0,107460.0,0.59046533]
[1748493530634,0.03721803,107470.0,107460.0,0.59046533]
[1748493530850,0.03721803,107470.0,107460.0,0.59977077]
[1748493531063,0.03721803,107470.0,107460.0,0.60907612]
[1748493531064,0.04652295,107470.0,107460.0,0.60907612]
[1748493531283,0.0279132,107470.0,107460.0,0.60907525]
[1748493531528,0.01960854,107470.0,107460.0,0.60907525]
[1748493531774,0.03821785,107470.0,107460.0,0.60907525]
[1748493532010,0.02991311,107470.0,107460.0,0.60907525]
[1748493532275,0.03921777,107470.0,107460.0,0.60907525]
[1748493532520,0.02991311,107470.0,107460.0,0.60907525]
[1748493532765,0.03921785,107470.0,107460.0,0.60907525]
[1748493533011,0.02991311,107470.0,107460.0,0.32369646]
[1748493533258,0.03921785,107470.0,107460.0,0.60907525]
[1748493533553,0.03921777,107470.0,107460.0,0.60907525]
[1748493533776,0.04852251,107470.0,107460.0,0.60907525]
[1748493534462,0.03921777,107470.0,107460.0,0.60907525]
[1748493534905,0.03921777,107470.0,107460.0,0.64157525]
[1748493535364,0.04852251,107470.0,107460.0,0.35619646]
[1748493535590,0.04852251,107470.0,107460.0,0.62557525]
[1748493536076,0.04852251,107470.0,107460.0,0.64473399]
[1748493536289,0.02060854,107470.0,107460.0,0.64473399]
[1748493536509,0.03921776,107470.0,107460.0,0.64473399]
[1748493536734,0.03921768,107470.0,107460.0,0.33089128]
[1748493536952,0.0485226,107470.0,107460.0,0.61892881]
[1748493537170,0.04852311,107470.0,107460.0,0.62823399]
[1748493538105,0.03921828,107470.0,107460.0,0.62823399]
[1748493538326,0.03921828,107470.0,107460.0,0.64383399]
[1748493538562,0.04852311,107470.0,107460.0,0.73956881]
[1748493538778,0.03921871,107470.0,107460.0,0.73956881]
[1748493539000,0.03921871,107470.0,107460.0,0.73026338]
[1748493539249,0.04852363,107470.0,107460.0,0.73026355]
[1748493539468,0.03921915,107470.0,107460.0,0.73026355]
[1748493540354,0.02991423,107470.0,107460.0,0.73956873]
[1748493540608,0.03921915,107470.0,107460.0,0.73026355]
[1748493540831,0.03921915,107470.0,107460.0,0.73956881]
[1748493541327,0.03921915,107470.0,107460.0,0.73026355]
[1748493542223,0.03903102,107470.0,107460.0,0.73026355]
[1748493542951,0.0297261,107470.0,107460.0,0.73956873]
[1748493543172,0.02042127,107470.0,107460.0,0.73956873]
[1748493543393,0.0297261,107470.0,107460.0,0.73956873]
[1748493543880,0.22512946,107470.0,107460.0,0.73026355]
[1748493544115,0.02042127,107470.0,107460.0,0.73956873]
[1748493544348,0.0297261,107470.0,107460.0,0.73956881]
[1748493544565,0.02042093,107470.0,107460.0,0.74887399]
[1748493544782,0.02972576,107470.0,107460.0,0.61892881]
[1748493544998,0.03903068,107470.0,107460.0,0.73956881]
[1748493545460,0.02042136,107470.0,107460.0,0.73956968]
[1748493545703,0.02972576,107470.0,107460.0,0.73956968]
[1748493545942,0.03903068,107470.0,107460.0,0.73956968]
[1748493546625,0.22512912,107470.0,107460.0,0.73956968]
[1748493546858,0.03903068,107470.0,107460.0,0.73956968]
[1748493547276,0.03903068,107470.0,107460.0,0.74887494]
[1748493547528,0.02972567,107470.0,107460.0,0.74887434]
[1748493547756,0.22512894,107470.0,107460.0,0.7302639]
[1748493548215,0.0390305,107470.0,107460.0,0.73956908]
[1748493548437,0.2158242,107470.0,107460.0,0.73026407]
[1748493548758,0.01111601,107470.0,107460.0,0.7488746]
[1748493548906,0.36420471,107470.0,107460.0,0.7803746]
[1748493549134,0.36401358,107470.0,107460.0,0.7803746]
[1748493549590,0.0202291,107470.0,107460.0,0.7803746]
[1748493549826,0.01092496,107470.0,107460.0,1.21142855]
[1748493550089,0.00162074,107470.0,107460.0,1.21142855]
[1748493550327,0.00162074,107470.0,107460.0,1.09078855]
[1748493550575,0.00162074,107470.0,107460.0,1.53068608]
[1748493551082,0.00162074,107470.0,107460.0,1.56002855]
[1748493551863,0.02791051,107480.0,107470.0,0.56981215]
[1748493552088,0.00930336,107480.0,107470.0,0.95909229]
[1748493552310,0.01860689,107480.0,107470.0,0.95909229]
[1748493552776,0.0279106,107480.0,107470.0,0.95909229]
[1748493553037,0.00930336,107480.0,107470.0,1.26362982]
[1748493553305,0.00930336,107480.0,107470.0,0.96309229]
[1748493553804,0.01860689,107480.0,107470.0,0.96609229]
[1748493554246,0.0279106,107480.0,107470.0,0.96609229]
[1748493554928,0.1861501,107500.0,107470.0,0.96609229]
[1748493555197,0.00930301,107490.0,107480.0,0.92028961]
[1748493555435,0.00930301,107490.0,107480.0,1.42329764]
[1748493555436,0.02790895,107490.0,107480.0,1.42329764]
[1748493556146,0.02770681,107490.0,107480.0,1.42329764]
[1748493557280,0.02770681,107490.0,107480.0,1.42529764]
[1748493557503,0.64958637,107500.0,107480.0,1.42529764]
[1748493557730,0.01860576,107490.0,107480.0,1.12076011]
[1748493557947,0.20466957,107490.0,107480.0,1.11145649]
[1748493558171,0.01860508,107490.0,107480.0,1.13206365]
[1748493558403,0.21133048,107510.0,107500.0,0.19534857]
[1748493558652,0.01860239,107510.0,107500.0,0.25302373]
[1748493558876,0.01860239,107510.0,107500.0,0.54836999]
[1748493558877,0.21393244,107510.0,107500.0,0.54836999]
[1748493559107,0.53567159,107510.0,107500.0,0.55767222]
[1748493559568,0.20553891,107510.0,107500.0,0.56697437]
[1748493559795,0.53667214,107510.0,107500.0,0.35302116]
[1748493560011,0.54378371,107510.0,107500.0,0.35302116]
[1748493560488,0.52838371,107510.0,107500.0,0.35302116]
[1748493562762,0.52838371,107510.0,107500.0,0.46974116]
[1748493563239,0.19782371,107510.0,107500.0,0.6650899]
[1748493563478,0.52726371,107510.0,107500.0,0.6650899]
[1748493564199,0.52726371,107510.0,107500.0,0.67439205]
[1748493564642,0.52726371,107510.0,107500.0,0.68369411]
[1748493565123,0.52726371,107510.0,107500.0,0.67439205]
[1748493565342,0.52726371,107510.0,107500.0,0.46974116]
[1748493565548,0.52726371,107510.0,107500.0,0.47904348]
[1748493566223,0.51796243,107510.0,107500.0,0.46974116]
[1748493566682,0.18834631,107510.0,107500.0,0.46974116]
[1748493566906,0.51638631,107510.0,107500.0,0.46974116]
[1748493568058,0.51638631,107510.0,107500.0,0.65578767]
[1748493568059,0.18834631,107510.0,107500.0,0.65578767]
[1748493568275,0.5439861,107510.0,107500.0,0.67439187]
[1748493568497,0.20712508,107510.0,107500.0,0.67439205]
[1748493568712,0.53444508,107510.0,107500.0,0.67439205]
[1748493568934,0.53344508,107510.0,107500.0,0.67439205]
[1748493569148,0.20512508,107510.0,107500.0,0.68369394]
[1748493569388,0.00049323,107510.0,107500.0,1.03299565]
[1748493569608,0.00049323,107510.0,107500.0,1.1558496]
[1748493569609,0.00979399,107510.0,107500.0,1.1558496]
[1748493570268,0.20512473,107510.0,107500.0,0.81644348]
[1748493570498,0.22742371,107510.0,107500.0,0.12353215]
[1748493572900,0.22742371,107510.0,107500.0,0.01041215]
[1748493573123,0.22742371,107510.0,107500.0,0.42806968]
[1748493575779,0.55290371,107510.0,107500.0,0.42806968]
[1748493576008,0.21212371,107510.0,107500.0,0.42806968]
[1748493576236,0.53736371,107510.0,107500.0,0.31494968]
[1748493576442,0.53736371,107510.0,107500.0,0.42806968]
[1748493576653,0.19582371,107510.0,107500.0,0.49550024]
[1748493576870,0.52086371,107510.0,107500.0,0.49550024]
[1748493578356,0.52086371,107510.0,107500.0,0.63272057]
[1748493578357,0.21442593,107510.0,107500.0,0.63272057]
[1748493579001,0.21442593,107510.0,107500.0,0.31888098]
[1748493579210,0.21442593,107510.0,107500.0,0.63272074]
[1748493580487,0.21442593,107510.0,107500.0,0.62341851]
[1748493580722,0.21442593,107510.0,107500.0,0.71782557]
[1748493580937,0.20512491,107510.0,107500.0,0.70852334]
[1748493581144,0.20512491,107510.0,107500.0,0.52247683]
[1748493581404,0.20512491,107510.0,107500.0,0.53177906]
[1748493581610,0.20512491,107510.0,107500.0,0.22724153]
[1748493581813,0.20512491,107510.0,107500.0,0.44667423]
[1748493582041,0.20512491,107510.0,107500.0,0.63272074]
[1748493582248,0.20512491,107510.0,107500.0,0.32818321]
[1748493582458,0.20512491,107510.0,107500.0,0.64202289]
[1748493582879,0.20512491,107510.0,107500.0,0.65132486]
[1748493583088,0.20512491,107510.0,107500.0,0.73735982]
[1748493583723,0.20512491,107510.0,107500.0,0.42352032]
[1748493583947,0.20512491,107510.0,107500.0,0.73735982]
[1748493584159,0.20512491,107510.0,107500.0,0.52340696]
[1748493584366,0.20512491,107510.0,107500.0,0.7187557]
[1748493584774,0.20512491,107510.0,107500.0,0.52340696]
[1748493584986,0.18652243,107510.0,107500.0,0.52340696]
[1748493585613,0.18652243,107510.0,107500.0,0.71875562]
[1748493585868,0.19582371,107510.0,107500.0,0.73735965]
[1748493586080,0.19582371,107510.0,107500.0,0.74666154]
[1748493586081,0.03769775,107510.0,107500.0,0.74666154]
[1748493586287,0.22372695,107510.0,107500.0,0.73735965]
[1748493586516,0.20512517,107510.0,107500.0,0.71875562]
[1748493586938,0.20512517,107510.0,107500.0,0.72805768]
[1748493587174,0.20512517,107510.0,107500.0,0.71875562]
[1748493588035,0.20512517,107510.0,107500.0,0.72805768]
[1748493588241,0.20512517,107510.0,107500.0,0.73735965]
[1748493588453,0.01909597,107510.0,107500.0,0.73735965]
[1748493588657,0.02839629,107510.0,107500.0,0.74666084]
[1748493589092,0.01909501,107510.0,107500.0,0.77716084]
[1748493589294,0.02839621,107510.0,107500.0,0.77716084]
[1748493589511,0.02839621,107510.0,107500.0,0.76785913]
[1748493589747,0.01909485,107510.0,107500.0,1.11716084]
[1748493589958,0.01909476,107510.0,107500.0,1.11716084]
[1748493590798,0.00979391,107510.0,107500.0,1.11716084]
[1748493591024,0.00049323,107510.0,107500.0,1.20821479]
[1748493591445,0.00049323,107510.0,107500.0,1.23612279]
[1748493591883,0.00049323,107510.0,107500.0,1.25066364]
[1748493593362,0.00049323,107510.0,107500.0,1.24125149]
[1748493593634,0.00049323,107510.0,107500.0,0.93671396]
[1748493593840,0.00049323,107510.0,107500.0,1.24125149]
[1748493594488,0.00049323,107510.0,107500.0,1.53585149]
[1748493595601,0.00049323,107510.0,107500.0,1.85038902]
[1748493596049,0.00049323,107510.0,107500.0,1.88002997]
[1748493596270,0.00049323,107510.0,107500.0,1.85038902]
[1748493596502,0.00049323,107510.0,107500.0,1.24131396]
[1748493596729,0.00049323,107510.0,107500.0,1.85038902]
[1748493596993,0.00049323,107510.0,107500.0,2.25038902]
[1748493598800,1.00049323,107510.0,107500.0,2.25038902]
[1748493599429,1.00049323,107510.0,107500.0,1.95578902]
[1748493599648,1.00049323,107510.0,107500.0,1.34671396]
[1748493599867,1.00049323,107510.0,107500.0,1.65125149]
[1748493600210,1.00049323,107510.0,107500.0,1.52813149]
[1748493600312,1.21442619,107510.0,107500.0,0.87417948]
[1748493600539,1.05109553,107510.0,107500.0,0.96917039]
[1748493600794,1.06039621,107510.0,107500.0,0.9784721]
[1748493601019,1.06039612,107510.0,107500.0,0.9784721]
[1748493601241,1.05109501,107510.0,107500.0,1.06952605]
[1748493601498,1.06039612,107510.0,107500.0,0.67393466]
[1748493601716,1.06969732,107510.0,107500.0,0.9877739]
[1748493602169,1.06969732,107510.0,107500.0,0.11068]
[1748493602170,1.23712491,107510.0,107500.0,0.11068]
[1748493602650,1.23712491,107510.0,107500.0,0.41521753]
[1748493602880,1.23712491,107510.0,107500.0,0.67764229]
[1748493603102,1.23712491,107510.0,107500.0,0.6962465]
[1748493603549,1.22782371,107510.0,107500.0,0.48229346]
[1748493603774,1.22782371,107510.0,107500.0,0.11068]
[1748493604003,1.21852243,107510.0,107500.0,0.41521753]
[1748493604437,1.21852243,107510.0,107500.0,0.42451985]
[1748493605110,1.21852243,107510.0,107500.0,0.43382208]
[1748493605609,1.21852243,107510.0,107500.0,0.41521753]
[1748493605833,1.21852243,107510.0,107500.0,0.42451985]
[1748493606100,1.21852243,107510.0,107500.0,0.43382208]
[1748493606575,1.21852243,107510.0,107500.0,0.49996733]
[1748493607729,1.21852243,107510.0,107500.0,0.11068]
[1748493607994,1.21852243,107510.0,107500.0,0.43382208]
[1748493608485,1.21852243,107510.0,107500.0,0.62917065]
[1748493608719,1.21852243,107510.0,107500.0,0.62917074]
[1748493609662,1.21852243,107510.0,107500.0,0.11068]
[1748493609890,1.21852243,107510.0,107500.0,0.44904855]
[1748493610122,1.21852243,107510.0,107500.0,0.45835087]
[1748493610358,1.21852243,107510.0,107500.0,0.44904855]
[1748493610586,1.21852243,107510.0,107500.0,0.14451102]
[1748493610820,1.21852243,107510.0,107500.0,0.44904855]
[1748493611256,1.20282243,107510.0,107500.0,0.44904855]
[1748493611475,1.18652243,107510.0,107500.0,0.45835078]
[1748493611722,1.1958238,107510.0,107500.0,0.15381334]
[1748493611955,1.1958238,107510.0,107500.0,0.45835087]
[1748493612177,1.01909571,107510.0,107500.0,0.99369944]
[1748493612432,1.02839717,107510.0,107500.0,1.00300133]
[1748493613146,1.00049323,107510.0,107500.0,1.13425699]
[1748493613365,1.00979399,107510.0,107500.0,1.13425699]
[1748493613626,1.00049323,107510.0,107500.0,1.13425699]
[1748493613848,1.01909476,107510.0,107500.0,1.13425699]
[1748493614072,1.00979391,107510.0,107500.0,1.13425699]
[1748493614346,1.00049323,107510.0,107500.0,1.13425699]
[1748493614575,1.00979399,107510.0,107500.0,0.82971946]
[1748493614790,1.00049323,107510.0,107500.0,1.13425699]
[1748493615014,1.00979391,107510.0,107500.0,1.13425699]
[1748493615235,1.00049323,107510.0,107500.0,1.13425699]
[1748493615464,1.00049323,107510.0,107500.0,0.82971946]
[1748493615465,1.01909493,107510.0,107500.0,0.82971946]
[1748493615792,1.01909493,107510.0,107500.0,1.13425699]
[1748493616267,1.01909493,107510.0,107500.0,1.42885699]
[1748493616489,1.01909493,107510.0,107500.0,1.75257699]
[1748493617153,1.01909493,107510.0,107500.0,1.44803946]
[1748493617365,1.01909493,107510.0,107500.0,1.75257699]
[1748493617583,1.01909484,107510.0,107500.0,1.75257699]
[1748493617811,1.02839578,107510.0,107500.0,1.10881946]
[1748493618040,1.23652473,107510.0,107500.0,0.001]
[1748493618267,1.56028473,107510.0,107500.0,0.11116]
[1748493618748,1.56028473,107510.0,107500.0,0.41569753]
[1748493619442,1.56028473,107510.0,107500.0,0.11116]
[1748493619695,1.56028473,107510.0,107500.0,0.41569753]
[1748493621293,1.56028473,107510.0,107500.0,0.11116]
[1748493621733,1.56028473,107510.0,107500.0,0.30553753]
[1748493621948,1.56028473,107510.0,107500.0,0.41569753]
[1748493622872,1.56028473,107510.0,107500.0,0.11116]
[1748493623098,1.56028473,107510.0,107500.0,0.41569753]
[1748493624047,1.56028473,107510.0,107500.0,0.48096672]
[1748493625374,1.56028473,107510.0,107500.0,0.11116]
[1748493625805,1.56028473,107510.0,107500.0,0.41569753]
[1748493626480,1.56028473,107510.0,107500.0,0.001]
[1748493626696,1.65445868,107510.0,107500.0,0.001]
[1748493627902,1.68758198,107510.0,107500.0,0.001]
[1748493628355,1.65445868,107510.0,107500.0,0.001]
[1748493628823,1.65445868,107510.0,107500.0,0.01739621]
[1748493629052,0.23566957,107490.0,107480.0,0.40176]
[1748493629276,0.56406957,107490.0,107480.0,0.4191654]
[1748493629741,0.56406957,107490.0,107480.0,0.41915409]
[1748493630193,0.56406957,107490.0,107480.0,0.41915408]
[1748493631149,0.56406957,107490.0,107480.0,0.40576]
[1748493631381,0.56406957,107490.0,107480.0,0.0213941]
[1748493631626,0.56406957,107490.0,107480.0,0.004]
[1748493631849,0.56406957,107490.0,107480.0,0.02138682]
[1748493632070,0.56406957,107490.0,107480.0,0.02138722]
[1748493632772,0.56406957,107490.0,107480.0,0.02138723]
[1748493632997,0.56406957,107490.0,107480.0,0.02138724]
[1748493633223,0.65512352,107490.0,107480.0,0.02138724]
[1748493633451,0.65512352,107490.0,107480.0,0.02138744]
[1748493634126,0.65512352,107490.0,107480.0,0.004]
[1748493634349,0.65512352,107490.0,107480.0,0.02137935]
[1748493634566,0.65512352,107490.0,107480.0,0.004]
[1748493634790,0.65512352,107490.0,107480.0,0.0213729]
[1748493635033,0.65512352,107490.0,107480.0,0.0193729]
[1748493635260,0.65512352,107490.0,107480.0,0.01937294]
[1748493635510,0.19540318,107470.0,107460.0,0.66767126]
[1748493635737,0.19540318,107470.0,107460.0,0.7667911]
[1748493635955,0.19540318,107470.0,107460.0,1.08063423]
[1748493636193,0.19540318,107470.0,107460.0,1.08993979]
[1748493636407,0.19540318,107470.0,107460.0,0.77609674]
[1748493636635,0.01860922,107470.0,107460.0,1.08063024]
[1748493636854,0.03721897,107470.0,107460.0,1.09929036]
[1748493637330,0.22331741,107470.0,107460.0,0.76683449]
[1748493637558,0.03721897,107470.0,107460.0,1.08997809]
[1748493637778,0.02791405,107470.0,107460.0,1.10528327]
[1748493638015,0.02791336,107470.0,107460.0,1.13568324]
[1748493638483,0.01860768,107480.0,107470.0,0.21401259]
[1748493638785,0.01860768,107480.0,107470.0,0.21276297]
[1748493638786,0.20468881,107480.0,107470.0,0.21276297]
[1748493639026,0.01860594,107490.0,107480.0,0.21399216]
[1748493639262,0.21397242,107490.0,107480.0,0.51728215]
[1748493639518,0.22327561,107490.0,107480.0,0.02665949]
[1748493639755,0.53674098,107500.0,107480.0,0.57477508]
[1748493639988,0.03721084,107490.0,107480.0,0.94414849]
[1748493640207,0.03721076,107490.0,107480.0,1.06134849]
[1748493640669,0.03721076,107490.0,107480.0,0.59374344]
[1748493640670,0.22327535,107490.0,107480.0,0.59374344]
[1748493640891,0.22327535,107490.0,107480.0,0.01735446]
[1748493640892,0.23606993,107490.0,107480.0,0.01735446]
[1748493641602,0.23606993,107490.0,107470.0,0.77327557]
[1748493641603,0.19538501,107480.0,107470.0,0.77327557]
[1748493641827,0.19538501,107480.0,107470.0,0.79063194]
[1748493642042,0.19538501,107480.0,107470.0,0.87968589]
[1748493642271,0.2046888,107480.0,107470.0,0.14409468]
[1748493642505,0.21178501,107480.0,107470.0,0.44863221]
[1748493642726,0.21178501,107480.0,107470.0,0.14409488]
[1748493642950,0.21178501,107480.0,107470.0,0.44863241]
[1748493643209,0.56284501,107480.0,107470.0,0.02689488]
[1748493643427,0.56284501,107480.0,107470.0,0.02689642]
[1748493643860,0.56284501,107480.0,107470.0,0.02889642]
[1748493644300,0.56284501,107480.0,107470.0,0.02889635]
[1748493644529,0.56284501,107480.0,107470.0,0.33343388]
[1748493644755,0.56284501,107480.0,107470.0,0.02135999]
[1748493645684,0.56284501,107480.0,107470.0,0.02136312]
[1748493645912,0.56284501,107480.0,107470.0,0.02136316]
[1748493646135,0.19538501,107480.0,107470.0,0.53327941]
[1748493646400,0.02791155,107480.0,107470.0,0.56119282]
[1748493646636,0.02791086,107480.0,107470.0,0.59249282]
[1748493646870,0.02791086,107480.0,107470.0,0.59249291]
[1748493647113,0.02791086,107480.0,107470.0,0.58443505]
[1748493647336,0.02791077,107480.0,107470.0,0.64656278]
[1748493647583,0.04651862,107480.0,107470.0,0.64656278]
[1748493647803,0.01860681,107480.0,107470.0,1.04215426]
[1748493648023,0.02791043,107480.0,107470.0,1.04215426]
[1748493648249,0.02791043,107480.0,107470.0,1.0421628]
[1748493648250,0.04651802,107480.0,107470.0,1.0421628]
[1748493648477,0.04651802,107480.0,107470.0,1.02479331]
[1748493648703,0.04651802,107480.0,107470.0,1.04216632]
[1748493649587,0.03721431,107480.0,107470.0,1.04216632]
[1748493649836,0.04651827,107480.0,107470.0,1.03286348]
[1748493650061,0.04651819,107480.0,107470.0,0.73763035]
[1748493650289,0.04651819,107480.0,107470.0,1.04216735]
[1748493650734,0.04651819,107480.0,107470.0,0.72832551]
[1748493650980,0.03721483,107480.0,107470.0,1.02355864]
[1748493651210,0.01860707,107480.0,107470.0,1.03286321]
[1748493651475,0.01860716,107480.0,107470.0,1.04216752]
[1748493651941,0.02791104,107480.0,107470.0,1.02479296]
[1748493652170,0.02791104,107480.0,107470.0,0.71095112]
[1748493652399,0.02791104,107480.0,107470.0,1.02479262]
[1748493653074,0.21399217,107480.0,107470.0,0.88122108]
[1748493653317,0.21399217,107480.0,107470.0,0.87452582]
[1748493653537,0.03721501,107480.0,107470.0,0.89313479]
[1748493653765,0.03721501,107480.0,107470.0,0.92433479]
[1748493654047,0.21399217,107480.0,107470.0,0.60118829]
[1748493654280,0.22329614,107480.0,107470.0,0.58921267]
[1748493654498,0.21399269,107480.0,107470.0,0.58921267]
[1748493654716,0.21399269,107480.0,107470.0,0.8937502]
[1748493654957,0.20468898,107480.0,107470.0,0.88444554]
[1748493655200,0.20468898,107480.0,107470.0,0.344]
[1748493655455,0.1953851,107480.0,107470.0,0.64853753]
[1748493655687,0.1953851,107480.0,107470.0,0.46544]
[1748493655916,0.2274851,107480.0,107470.0,0.76997753]
[1748493656358,0.2274851,107480.0,107470.0,0.55649395]
[1748493656610,0.2274851,107480.0,107470.0,0.86103148]
[1748493656840,0.2274851,107480.0,107470.0,0.46544]
[1748493658246,0.2274851,107480.0,107470.0,0.12544]
[1748493658484,0.2274851,107480.0,107470.0,0.42997753]
[1748493659901,0.2274851,107480.0,107470.0,0.12544]
[1748493660148,0.2274851,107480.0,107470.0,0.004]
[1748493660388,0.2274851,107480.0,107470.0,0.30853753]
[1748493660624,0.2274851,107480.0,107470.0,0.37070162]
[1748493660625,0.22581603,107480.0,107470.0,0.37070162]
[1748493660855,0.22581603,107480.0,107470.0,0.004]
[1748493661582,0.34787662,107480.0,107470.0,0.004]
[1748493661854,0.31686998,107480.0,107470.0,0.004]
[1748493663034,0.66814998,107480.0,107470.0,0.004]
[1748493665680,0.66814998,107480.0,107470.0,0.002]
[1748493666862,0.22650318,107470.0,107460.0,4.916e-05]
[1748493667086,0.31755713,107470.0,107460.0,4.916e-05]
[1748493667757,0.67623713,107470.0,107460.0,4.916e-05]
[1748493668209,0.67623713,107470.0,107460.0,0.00204916]
[1748493668438,0.67623713,107470.0,107460.0,0.00304916]
[1748493668881,0.67623713,107470.0,107460.0,0.00204916]
[1748493669847,0.67623713,107470.0,107460.0,4.916e-05]
[1748493674085,0.22650318,107470.0,107460.0,0.30458669]
[1748493674310,0.19540318,107470.0,107460.0,4.916e-05]
[1748493674541,0.19540318,107470.0,107460.0,0.30458669]
[1748493675008,0.19540318,107470.0,107460.0,4.916e-05]
[1748493675247,0.19540318,107470.0,107460.0,0.30458669]
[1748493675718,0.19540318,107470.0,107460.0,0.359005]
[1748493675933,0.19540318,107470.0,107460.0,0.05446747]
[1748493676171,0.20470784,107470.0,107460.0,0.30458669]
[1748493676400,0.20470784,107470.0,107460.0,0.51640815]
[1748493676618,0.20470784,107470.0,107460.0,0.33728669]
[1748493676858,0.20470784,107470.0,107460.0,0.35589817]
[1748493677187,0.19540318,107470.0,107460.0,0.30458669]
[1748493677441,0.19540318,107470.0,107460.0,0.35954438]
[1748493678331,0.19540318,107470.0,107460.0,0.05500685]
[1748493678554,0.19540318,107470.0,107460.0,4.916e-05]
[1748493679012,0.21080318,107470.0,107460.0,0.30458669]
[1748493679225,0.19540318,107470.0,107460.0,0.30458669]
[1748493680371,0.21180318,107470.0,107460.0,4.916e-05]
[1748493680822,0.21180318,107470.0,107460.0,0.30458669]
[1748493681066,0.19540318,107470.0,107460.0,0.33496988]
[1748493681330,0.19540318,107470.0,107460.0,0.03043235]
[1748493681563,0.19540318,107470.0,107460.0,0.16295235]
[1748493682025,0.19540318,107470.0,107460.0,0.46748988]
[1748493682502,0.74689928,107470.0,107460.0,4.916e-05]
[1748493682735,0.81010941,107470.0,107460.0,4.916e-05]
[1748493682960,5.86010941,107470.0,107460.0,4.916e-05]
[1748493683194,0.22130296,107420.0,107410.0,0.13252]
[1748493683423,0.69147691,107420.0,107410.0,0.13252]
[1748493683659,0.69147691,107420.0,107410.0,0.14120875]
[1748493683903,0.22130296,107420.0,107410.0,0.44574671]
[1748493684136,0.20480296,107420.0,107410.0,0.13252]
[1748493684873,0.20495067,107420.0,107410.0,0.13252]
[1748493685110,0.19551234,107410.0,107400.0,0.64453753]
[1748493685339,0.19551234,107410.0,107400.0,0.78636851]
[1748493685573,0.2048222,107410.0,107400.0,0.98189905]
[1748493686064,0.19413214,107410.0,107400.0,0.78636843]
[1748493686299,0.18482228,107410.0,107400.0,0.43105395]
[1748493686527,0.18482228,107410.0,107400.0,0.73759148]
[1748493686972,0.18482228,107410.0,107400.0,0.87603148]
[1748493687693,0.18482228,107410.0,107400.0,0.14044]
[1748493688168,0.21632228,107410.0,107400.0,0.003]
[1748493688403,0.30737623,107410.0,107400.0,0.003]
[1748493689134,0.18482228,107410.0,107400.0,0.003]
[1748493689594,0.18482228,107410.0,107400.0,0.30753753]
[1748493689830,0.18482228,107410.0,107400.0,0.33922247]
[1748493690020,0.18482228,107410.0,107400.0,0.03468494]
[1748493690296,0.18482228,107410.0,107400.0,0.003]
[1748493690297,0.38177753,107410.0,107400.0,0.003]
[1748493690530,0.76852187,107410.0,107400.0,0.003]
[1748493690758,0.23637924,107380.0,107370.0,6e-05]
[1748493690988,0.70279319,107380.0,107370.0,6e-05]
[1748493691240,0.67129319,107380.0,107370.0,0.00872211]
[1748493691482,0.68669319,107380.0,107370.0,0.00872211]
[1748493691713,0.68669319,107380.0,107370.0,0.00871438]
[1748493691958,0.67129319,107380.0,107370.0,0.00871438]
[1748493692234,0.67244082,107380.0,107370.0,0.00871442]
[1748493692694,0.67344082,107380.0,107370.0,0.00871353]
[1748493693175,0.68796564,107380.0,107370.0,0.00870744]
[1748493693642,0.70296564,107380.0,107370.0,0.00870267]
[1748493694625,0.73516913,107380.0,107370.0,0.00870267]
[1748493694849,0.73516913,107380.0,107370.0,6e-05]
[1748493695090,0.67206564,107380.0,107370.0,6e-05]
[1748493695772,0.67206564,107380.0,107370.0,0.0086928]
[1748493696006,0.68826564,107380.0,107370.0,6e-05]
[1748493697213,0.67206564,107380.0,107370.0,6e-05]
[1748493697447,0.68766564,107380.0,107370.0,6e-05]
[1748493698169,0.22698518,107370.0,107360.0,0.001805]
[1748493698401,0.76464392,107370.0,107360.0,0.001805]
[1748493699613,1.14936392,107370.0,107360.0,0.001805]
[1748493699875,1.15436392,107370.0,107360.0,0.001805]
[1748493700095,1.10216043,107370.0,107360.0,0.001805]
[1748493700343,1.14367733,107370.0,107360.0,0.001805]
[1748493701294,0.31635254,107370.0,107360.0,0.001805]
[1748493701519,0.28495254,107370.0,107360.0,0.001805]
[1748493701985,0.18989859,107370.0,107360.0,0.001805]
[1748493702471,0.18689859,107370.0,107360.0,0.01041695]
[1748493702746,0.18689859,107370.0,107360.0,0.24775977]
[1748493702985,0.18989859,107370.0,107360.0,0.27570277]
[1748493703228,0.18689859,107370.0,107360.0,0.56157563]
[1748493703475,0.18989859,107370.0,107360.0,0.0197314]
[1748493703723,0.18789859,107370.0,107360.0,0.02904576]
[1748493703978,0.19089859,107370.0,107360.0,0.02904691]
[1748493704205,0.19089859,107370.0,107360.0,0.09034637]
[1748493704440,0.03393953,107370.0,107360.0,0.71742222]
[1748493704683,0.04325285,107370.0,107360.0,0.43154953]